Cogmind - Beta 11.1 @@@ ROGUE MODE // 2022.05.27 @ 14:30:49 // Winter2019/RPGLIKE Player: darki Result: Destroyed by D-53 Grenadier with Mini Grenade Launcher Performance ------------- Evolutions (0) 0 Regions Visited (2) 400 Robots Destroyed (36) 180 Value Destroyed (887) 887 Prototype IDs (0) 0 Alien Tech Used (0) 0 Bonus (40) 40 TOTAL SCORE: 1507 Bonus ------- High Alert Combat Kills 40 Cogmind --------- Core Integrity 0/600 Matter 431/500 Energy 125/125 System Corruption 4% Temperature Warm (116) Movement Walking (190) Ox1 Location -10/Mines Parts ------- > --- POWER (1) -------- Light Ion Engine > --- PROPULSION (1) --- Aluminum Leg > --- UTILITY (1) ------ High-capacity Matter Pod > --- WEAPON (4) ------- Assault Rifle Assault Rifle Light Assault Rifle Light Assault Rifle > --- INVENTORY (0) ---- (None) Peak State ------------ > --- POWER ------------ Light Ion Engine > --- PROPULSION ------- Aluminum Leg > --- UTILITY ---------- High-capacity Matter Pod > --- WEAPON ----------- Assault Rifle Light Assault Rifle Light Assault Rifle Light Assault Rifle > --- INVENTORY -------- (None) [Rating: 7] Favorites ----------- Power Ion Engine Engine Ion Engine Propulsion Aluminum Leg Leg Aluminum Leg Utility High-capacity Matter Pod Storage High-capacity Matter Pod Weapon Light Assault Rifle Ballistic Gun Light Assault Rifle Build | -11 -10 -10 ------- Run | Scr Mat Min Slots Evolved 3 | 2 1 . Power . | . . . Propulsion . | . . . Utility . | . . . Weapon 3 | 2 1 . Parts Attached 6 | 2 4 . Power 1 | . 1 . Engine 1 | . 1 . Core . | . . . Reactor . | . . . Propulsion . | . . . Treads . | . . . Leg . | . . . Wheel . | . . . Hover . | . . . Flight . | . . . Utility 1 | . 1 . Device . | . . . Storage 1 | . 1 . Processor . | . . . Hackware . | . . . Protection . | . . . Artifact . | . . . Weapon 4 | 2 2 . Energy Gun . | . . . Energy Cannon . | . . . Ballistic Gun 4 | 2 2 . Ballistic Cannon . | . . . Launcher . | . . . Special Weapon . | . . . Impact Weapon . | . . . Slashing Weapon . | . . . Piercing Weapon . | . . . Special Melee Weapon . | . . . Unidentified Prototypes . | . . . Parts Lost . | . . . Power . | . . . Propulsion . | . . . Utility . | . . . Weapon . | . . . Highest Loss Streak . | . . . To Critical Strikes . | . . . Average Slot Usage (%) 98 | . 98 100 Engine 14 | . 14 14 Leg 15 | . 15 14 Storage 15 | . 15 14 Ballistic Gun 51 | . 51 57 Naked Turns . | . . . Heaviest Build 13 | 9 13 13 Greatest Support 10 | 10 10 10 Greatest Overweight (x) 1 | . 1 1 Average Overweight (x) . | . . 1 Largest Inventory Capacity . | . . . Average Capacity . | . . . Most Carried . | . . . Average Carried . | . . . Final Capacity . | . . . Final Carried . | . . . Class Distribution -------------------- 100% | Gunner Dominant Class ---------------- Gunner | -10/Materials Gunner | -10/Mines Resources | -11 -10 -10 ----------- Run | Scr Mat Min Matter Collected 851 | 220 612 19 Remotely . | . . . Salvage Created 1184 | . 1074 110 Parts 87 | . 87 . Haulers Intercepted 2 | . 2 . Recyclers Shooed . | . . . Parts Field Recycled . | . . . Retrieved Matter . | . . . Parts Self-Destructed . | . . . Prevented . | . . . Kills | -11 -10 -10 ------- Run | Scr Mat Min Combat Hostiles Destroyed 30 | . 23 7 Guns 30 | . 23 7 Classes Destroyed 9 | . 8 1 Worker 2 | . 2 . Builder 4 | . 4 . Hauler 2 | . 2 . Recycler 1 | . 1 . Operator 2 | . 2 . Watcher 2 | . 2 . Swarmer 6 | . 6 . Grunt 17 | . 17 . Assembled 7 | . . 7 Best Kill Streak 7 | . 4 7 Combat Bots Only 7 | . 4 7 Max Kills in Single Turn 2 | . 2 2 Gunslinging 1 | . 1 1 Exploded . | . . . Melee . | . . . Uniques/NPCs Destroyed . | . . . Combat | -11 -10 -10 -------- Run | Scr Mat Min Damage Taken 1239 | . 494 745 Core 1007 | . 396 611 Absorbed by Shields . | . . . Redirected to Core 793 | . 318 475 Core Remaining (%) 100 | 100 . . Volleys Fired 88 | . 70 18 Largest 4 | . 4 4 Hottest 80 | . 80 80 Shots Fired 272 | . 222 50 Gun 272 | . 222 50 Cannon . | . . . Launcher . | . . . Special . | . . . Kinetic 272 | . 222 50 Thermal . | . . . Explosive . | . . . Electromagnetic . | . . . Robot Hit Streak 34 | . 24 34 Robot Miss Streak 3 | . 3 2 Penetration Max . | . . . Secondary Targets 10 | . 5 5 Max Gunslinging Chain 2 | . 1 2 Shots Hit Robots 189 | . 144 45 Core Hits 75 | . 56 19 Critical Kills 1 | . 1 . Critical Parts Destroyed 1 | . 1 . Critical Strikes 2 | . 2 . Destroy 2 | . 2 . Melee Attacks . | . . . Impact . | . . . Slashing . | . . . Piercing . | . . . Sneak Attacks . | . . . Combat Hostiles . | . . . Follow-up Attacks . | . . . Damage Inflicted 2116 | . 1665 451 Guns 1959 | . 1508 451 Cannons . | . . . Explosions 157 | . 157 . Melee . | . . . Ramming . | . . . Kinetic 1959 | . 1508 451 Thermal 157 | . 157 . Explosive . | . . . Electromagnetic . | . . . Impact . | . . . Slashing . | . . . Piercing . | . . . Highest Corruption 4 | . 4 4 Average Corruption 3 | . 3 4 Corruption Purged . | . . . Corruption Blocked . | . . . Effects 15 | . 12 3 Message Errors 2 | . 2 . Heat Flow Errors 5 | . 4 1 Energy Discharges 2 | . 2 . Data Loss (minor) 4 | . 4 . Weapon Failures 2 | . . 2 Overload Shots . | . . . Overflow Damage 97 | . 97 . Projectiles . | . . . Explosions 97 | . 97 . Melee . | . . . Knockbacks . | . . . Impact . | . . . Kinetic . | . . . Secondary . | . . . Self-Inflicted Damage . | . . . Shots . | . . . Rammed . | . . . Targets Rammed . | . . . Kicked . | . . . Crushed . | . . . Highest Temperature 461 | . 289 461 Average Temperature 86 | . 45 248 Received Heat Transfer 220 | . 180 40 Effects 8 | . . 8 Shutdowns 1 | . . 1 Interference 6 | . . 6 Short Circuit 1 | . . 1 Siege Activations . | . . . Robots Corrupted . | . . . Combat Hostiles . | . . . Parts Fried . | . . . Impact Corruptions . | . . . Robots Melted . | . . . Combat Hostiles . | . . . Parts Melted . | . . . Heat Transferred 100 | . 100 . Parts Sabotaged . | . . . Parts Stolen . | . . . Parts Stripped . | . . . Power Chain Reactions . | . . . Missiles Intercepted . | . . . Alert | -11 -10 -10 ------- Run | Scr Mat Min Peak Influence 492 | . 492 160 Initial 160 | . . 160 Average 236 | . 242 144 Maximum Alert Level 2 | . 2 . Low Security (%) 43 | 100 40 100 Level 1 38 | . 40 . Level 2 17 | . 18 . Level 3 . | . . . Level 4 . | . . . Level 5 . | . . . High Security . | . . . Max Security . | . . . Squads Dispatched 7 | . 7 . Investigation 6 | . 6 . Extermination . | . . . Reinforcement 1 | . 1 . Assault . | . . . Garrison . | . . . Intercept . | . . . Searches Triggered . | . . . Construction Impeded . | . . . Haulers Reinforced . | . . . Active Scanning Responses . | . . . Cargo Convoy Interrupts . | . . . Stealth | -11 -10 -10 --------- Run | Scr Mat Min Distress Signals . | . . . Communications Jammed . | . . . Distress Signals . | . . . Times Spotted 46 | . 27 19 Peak Tracking Total 15 | . 4 15 Tactical Retreats 1 | . 1 . Traps | -11 -10 -10 ------- Run | Scr Mat Min Traps Triggered 3 | . 3 . Indirectly . | . . . Trap Hack Attempts . | . . . Triggered . | . . . Disarmed . | . . . Reprogrammed . | . . . Reused . | . . . Traps Extracted . | . . . Installed . | . . . Triggered . | . . . Machines | -11 -10 -10 ---------- Run | Scr Mat Min Machines Disabled 2 | . 2 . Max in Single Turn 2 | . 2 . Machines Sabotaged 2 | . 2 . Garrisons Compromised . | . . . Overloaded Fab Kills . | . . . Hacking | -11 -10 -10 --------- Run | Scr Mat Min Machines Accessed 9 | . 9 . Terminals 7 | . 7 . Fabricators . | . . . Repair Stations 1 | . 1 . Recycling Units 1 | . 1 . Scanalyzers . | . . . Garrison Access . | . . . Total Hacks 27 | . 27 . Successful 8 | . 8 . Failed 19 | . 19 . Catastrophic 2 | . 2 . Database Lockouts . | . . . Manual 22 | . 22 . Terminals 21 | . 21 . Fabricators . | . . . Repair Stations 5 | . 5 . Recycling Units 1 | . 1 . Scanalyzers . | . . . Garrison Access . | . . . Terminal Hacks . | . . . Fabricator Hacks . | . . . Repair Station Hacks 1 | . 1 . Scan Component 1 | . 1 . Recycling Unit Hacks . | . . . Scanalyzer . | . . . Garrison Access Hacks . | . . . Unauthorized Hacks 6 | . 6 . Terminals 5 | . 5 . Detonate 3 | . 3 . Sabotage 2 | . 2 . Fabricators . | . . . Repair Stations . | . . . Recycling Units 1 | . 1 . Tunnel 1 | . 1 . Scanalyzers . | . . . Garrison Access . | . . . Data Cores Recovered . | . . . Used . | . . . Hacking Detections 6 | . 6 . Full Trace Events 4 | . 4 . Feedback Events . | . . . Feedback Blocked . | . . . Robot Schematics Acquired . | . . . Robots Built . | . . . Authchips . | . . . Time . | . . . Total Robot Build Rating . | . . . Part Schematics Acquired . | . . . Parts Built . | . . . Authchips . | . . . Time . | . . . Total Part Build Rating . | . . . Parts Repaired . | . . . Time . | . . . Parts Recycled . | . . . Recycled Matter . | . . . Retrieved Matter . | . . . Retrieved Components . | . . . Parts Scanalyzed . | . . . Part Schematics Acquired . | . . . Parts Damaged . | . . . Bothacking | -11 -10 -10 ------------ Run | Scr Mat Min Used RIF Installer . | . . . Robots Hacked . | . . . Non-combat . | . . . Combat . | . . . Robot Hacks Applied . | . . . Relay Couplers Released . | . . . Fabnet Peak Effective % . | . . . Robots Rewired . | . . . Allies Hacked . | . . . Hacks Repelled . | . . . Allies | -11 -10 -10 -------- Run | Scr Mat Min Total Allies 1 | . . 1 Largest Group 1 | . . 1 Highest-Rated Group 31 | . . 31 Highest-Rated Ally 31 | . . 31 Total Orders . | . . . Ally Attacks 2 | . . 2 Total Damage 44 | . . 44 Kills . | . . . Allies Corrupted . | . . . Allies Melted . | . . . Intel | -11 -10 -10 ------- Run | Scr Mat Min Robot Analysis Total . | . . . Derelict Logs Recovered . | . . . Drone Launches . | . . . Drone Recoveries . | . . . Exploration | -11 -10 -10 ------------- Run | Scr Mat Min Turns Passed 1734 | 9 1650 75 Spaces Moved 662 | 6 646 10 Core . | . . . Treads . | . . . Legs 662 | 6 646 10 Wheels . | . . . Hover . | . . . Flight . | . . . Fastest Speed 120 | 120 120 190 Average Speed 183 | 120 183 190 Slowest Speed 190 | 120 190 190 Overloaded Moves . | . . . Propulsion Burnouts . | . . . Robots Hopped . | . . . Cave-ins Triggered . | . . . Exploration Rate (%) 34 | 2 93 7 Regions Visited 2 Branch Regions 1 Pre-discovered Areas 1 | . 1 . Known Exits Taken . | . . . Unknown Exits Taken 2 | 1 1 . Scrap Searched . | . . . Spaces Dug . | . . . Terrain Destroyed 30 | . 30 . Melee . | . . . Projectile . | . . . AOE 30 | . 30 . Terrain Rammed . | . . . Walls Destroyed . | . . . Machines Disabled . | . . . Actions | -11 -10 -10 --------- Run | Scr Mat Min Total 1021 | 7 979 35 Wait 242 | . 235 7 Move 660 | 5 645 10 Hop . | . . . Pick Up . | . . . Fast Attach 6 | 2 4 . Attach . | . . . Detach . | . . . Swap . | . . . Drop 2 | . 2 . Fire 88 | . 70 18 Melee . | . . . Ram . | . . . Kick . | . . . Crush . | . . . Escape Stasis . | . . . Rewire . | . . . Trap . | . . . Miscellaneous 23 | . 23 . Route ------- -11/Scrapyard -10/Materials (discovered 5 exits: [*Mat x3] / [*Min x2]) -10/Mines History --------- Turn | Location | Event 1 | -11/Scrapyard | Discovered new exit (range 1) 3 | -11/Scrapyard | Upgraded with Weapon slot (x2) 10 | -11/Scrapyard | Entered Materials 10 | -10/Materials | Discovered new exit (range 8) 312 | -10/Materials | Build established: Gunner 317 | -10/Materials | Discovered new exit (range 15) 475 | -10/Materials | Discovered new exit (range 7) 761 | -10/Materials | Reached level 2 1031 | -10/Materials | Discovered new exit (range 7) 1076 | -10/Materials | Reached level 3 1154 | -10/Materials | Upgraded with Weapon slot (x1) 1420 | -10/Materials | Discovered new exit (range 14) 1660 | -10/Materials | Entered Mines 1661 | -10/Mines | Assembled infested the area 1663 | -10/Mines | Received a Mining Laser from a helpful Derelict 1667 | -10/Mines | Assisted by a Guerilla fighting off Assembled 1720 | -10/Mines | Core integrity fell below 50% 1724 | -10/Mines | Destroyed 7 combat bots 1727 | -10/Mines | Core integrity fell below 20% 1735 | -10/Mines | Destroyed by D-53 Grenadier with Mini Grenade Launcher Last Messages --------------- 01712_ as-55016 destroyed. 01714_ as-98070 destroyed. 01714_ as-62261 destroyed. 01716_ The unstable cave ceiling collapses. 01717_ System corrupted: Lgt. Assault Rifle jammed. 01720_ The unstable cave ceiling collapses. 01724_ Overheating: System interference. 01724_ Assault Rifle temporarily disabled. 01724_ U-05 Engineer builds a Wall. 01724_ R-06 Scavenger collects Fission Core. 01726_ The unstable cave ceiling collapses. 01727_ U-05 Engineer lays Concrete. 01727_ R-06 Scavenger collects Flexi-carbon Leg. 01728_ D-53 Grenadier destroyed. 01728_ U-05 Engineer builds a Wall. 01729_ Overheating: System interference. 01729_ Lgt. Assault Rifle temporarily disabled. 01730_ The unstable cave ceiling collapses. 01733_ U-05 Engineer builds a Wall. 01735_ The unstable cave ceiling collapses. Map ----- +----------------------------------------------------+ | | | | | | | | | | | | | | | | | | | | | | | | | | | | | ??????????????????????????????? | | ??????????????????????????????? | | ??????????????????????????????? | | ??????????????????????????????? | | ????###???????????????????????? | | ???## ##?????????????????????? | | ???? ##????????????????????? | | ???? ##???????????????????? | | ??### ######??????????????? | | ?## < ?? #???????????? | | ?# #### ####????????? | | ?# @ #????????? | | ?# # # #???????? | | ?# ###???????? | | ?# d r $ ???????? | | ?## ##???????? | | ??# # #???????? | | ??## ????????? | | ???## ### ## ### ????????? | | ????## #?##??#?????????????? | | ?????## ##???????????????????? | | ??????####????????????????????? | | ??????????????????????????????? | | ??????????????????????????????? | | ??????????????????????????????? | | ??????????????????????????????? | | ??????????????????????????????? | | ??????????????????????????????? | | ??????????????????????????????? | | ??????????????????????????????? | | ??????????????????????????????? | | ??????????????????????????????? | | ??????????????????????????????? | | ??????????????????????????????? | | ??????????????????????????????? | | ??????????????????????????????? | +----------------------------------------------------+ Best States ------------- Heat Dissipation 25 Energy Generation 10 Energy Capacity 250 Matter Stores 500 Matter Capacity 500 Sight Range 16 Terrain Scan Density 10 Evasion (%) 55 Item Schematics ----------------- None Robot Schematics ------------------ None Fabricated ------------ Nothing Alien Tech Used ----------------- None Achievements -------------- None Challenges ------------ None RPGLIKE | -11 -10 -10 --------- Run | Scr Mat Min Levels Raised 2 | . 2 . XP Earned 7490 | 3000 3990 500 XP Spent 5300 | 2900 2400 . Upgrades 9 | 6 3 . Weapon Slot 3 | 2 1 . Ranged Accuracy 4 | 2 2 . KI Damage % 2 | 2 . . Protomatter Created 218 | . 204 14 Integrity Restored 463 | . 463 . Core 396 | . 396 . Parts 67 | . 67 . Protomatter Decayed 47 | . 47 . Game ------ Seed AutogunTransmissionInverter Manual? 0 Play Time 00:11:46 Cumulative 81.1 hours Start 2022.05.27 @ 14:19:55 End 2022.05.27 @ 14:30:49 Sessions 1 Manual Loads 0 Difficulty Rogue Special Mode Winter2019/RPGLIKE Game No. 94 Rogue 94 Adventurer 0 Explorer 0 Win Type - Total 0 Types 0/0/0/0/0/0/0/0/0 Lore% 43 Gallery% 53 Achievement% 41 Wizard Run 0 Options --------- ASCII 0 Keyboard 0 Movement Mouse Keybinds 0 Fullscreen 1 Font 18/SmallcapsGlow Map View 76x50 Tactical HUD 1 Map Filters NONE Filters NONE Steam 1 RUN: 424144b6-0b76-4762-b02c-01d5a2ef170b